Workbook

Sheet Лист1
A1: Школа | C1: ГБОУ "Маскаринская школа- интернат для детей с ограниченными возможностями здоровья" | F1: Утвердил: | G1: должность | H1: директор
A2: Типовое примерное меню приготавливаемых блюд | G2: фамилия | H2: Сабитов Ш. Н.
A3: Возрастная категория | E3: 7-11 лет | G3: дата | H3: 17 | I3: 9 | J3: 2024
H4: день | I4: месяц | J4: год
A5: Неделя | B5: День недели | C5: Прием пищи | D5: Раздел меню | E5: Блюда | F5: Вес блюда, г | G5: Белки | H5: Жиры | I5: Углеводы | J5: Калорийность | K5: № рецептуры | L5: Цена
A6: 1 | B6: 2 | C6: Завтрак | D6: гор.блюдо | E6: Каша манная мол. | F6: 200/10 | G6: 6 | H6: 5 | I6: 30.8 | J6: 200 | K6: 20 | L6: 12.25
D7: гор.напиток | E7: Чай слад. | F7: 200 | G7: 0.1 | H7: 0.02 | I7: 5.11 | J7: 39.9 | K7: 70 | L7: 1.45
D8: хлеб | E8: Хлеб пшеничный | F8: 120 | G8: 3.1 | H8: 0.2 | I8: 20.1 | J8: 284.1 | K8: 37 | L8: 9.13
D9: масло слив. | E9: Масло слив. | F9: 10 | G9: 0.4 | H9: 62.5 | I9: 0.8 | J9: 105 | K9: 50 | L9: 6.42
D10: сыр | E10: Сыр | F10: 24 | G10: 4.3 | H10: 5.4 | I10: 0 | J10: 67.4 | K10: 48 | L10: 16.08
D11: фрукты | E11: Апельсин | F11: 100 | G11: 1.4 | H11: 0.3 | I11: 8.1 | J11: 36 | K11: 61 | L11: 12.7
D13: итого | F13: =SUM(F7:F12) -> 454 | G13: =SUM(G6:G12) -> 15.3 | H13: =SUM(H6:H12) -> 10.92 | I13: =SUM(I6:I12) -> 64.91 | J13: =SUM(J6:J12) -> 732.4 | K13: =SUM(K6:K12) -> 286 | L13: =SUM(L6:L12) -> 58.03
A14: =A6 -> 1 | B14: =B6 -> 2 | C14: Завтрак 2 | D14: фрукты | E14: Банан | F14: 100 | G14: 1.4 | H14: 0.3 | I14: 12.1 | J14: 96 | K14: 62 | L14: 15.3
D15: напиток | E15: Кофейный напиток из цикория с мол | F15: 200 | G15: 4.32 | H15: 4.6 | I15: 9.6 | J15: 135 | K15: 54 | L15: 10.13
D16: хлеб бел. | E16: Хлеб пшеничный | F16: 160 | G16: 3.1 | H16: 0.2 | I16: 20.1 | J16: 378.8 | K16: 37 | L16: 12.18
D17: яйцо | E17: Яйцо вареное | F17: 1 | G17: 5.1 | H17: 4.6 | I17: 0.3 | J17: 63 | K17: 49 | L17: 9.9
D18: кондит.изд. | E18: Печенье | F18: 30 | G18: 3 | H18: 1.9 | I18: 20.8 | J18: 166.8 | K18: 47 | L18: 2.67
D19: итого | F19: =SUM(F14:F18) -> 491 | G19: =SUM(G14:G18) -> 16.92 | H19: =SUM(H14:H18) -> 11.6 | I19: =SUM(I14:I18) -> 62.9 | J19: =SUM(J14:J18) -> 839.6 | L19: =SUM(L14:L18) -> 50.18
A20: =A6 -> 1 | B20: =B6 -> 2 | C20: Обед | D20: закуска
D21: 1 блюдо | E21: Суп лапша домашняя к/м. | F21: 250 | G21: 4.22 | H21: 3.95 | I21: 22.66 | J21: 152 | K21: 5 | L21: 21
D22: 2 блюдо | E22: Овощное рагу с мясом говяд. | F22: 200/5 | G22: 3.46 | H22: 6.26 | I22: 9.98 | J22: 310 | K22: 10 | L22: 25.51
D23: гарнир
D24: напиток | E24: Компот из смеси сухофруктов | F24: 200 | G24: 4 | H24: 0.06 | I24: 35.2 | J24: 110 | K24: 53 | L24: 2.53
D25: хлеб бел.
D26: хлеб черн. | E26: Хлеб "Дарницкий" | F26: 80 | G26: 2.6 | H26: 0.4 | I26: 17 | J26: 163.2 | K26: 36 | L26: 3.59
D29: итого | F29: =SUM(F20:F28) -> 530 | G29: =SUM(G20:G28) -> 14.28 | H29: =SUM(H20:H28) -> 10.67 | I29: =SUM(I20:I28) -> 84.84 | J29: =SUM(J20:J28) -> 735.2 | L29: =SUM(L21:L28) -> 52.63
A30: =A6 -> 1 | B30: =B6 -> 2 | C30: Полдник | D30: кисломол.
D31: фрукты
D34: итого | F34: =SUM(F30:F33) -> 0 | G34: =SUM(G30:G33) -> 0 | H34: =SUM(H30:H33) -> 0 | J34: =SUM(J30:J33) -> 0 | K34: =SUM(K30:K33) -> 0
A35: =A6 -> 1 | B35: =B6 -> 2 | C35: Ужин | D35: хлеб черн. | E35: Хлеб "Дарницкий" | F35: 80 | G35: 2.6 | H35: 0.4 | I35: 17 | J35: 163.2 | K35: 36 | L35: 3.59
D36: 2 блюдо | E36: Каша гречнев рассып | F36: 200/20 | G36: 7 | H36: 5.1 | I36: 34.1 | J36: 200 | K36: 15 | L36: 12.11
D37: гарнир | E37: Рыбные тефтели | F37: 50/50 | G37: 12.7 | H37: 5.2 | I37: 4.4 | J37: 224.6 | K37: 77 | L37: 108.38
D38: гор.напиток | E38: Чай с молоком | F38: 200 | G38: 1.64 | H38: 1.64 | I38: 2.38 | J38: 30 | K38: 52 | L38: 7.82
D39: масло слив. | E39: Масло слив. | F39: 15 | G39: 0.4 | H39: 62.5 | I39: 0.8 | J39: 105 | K39: 50 | L39: 9.64
D41: итого | F41: =SUM(F35:F40) -> 295 | G41: =SUM(G35:G40) -> 24.34 | H41: =SUM(H35:H40) -> 74.84 | I41: =SUM(I35:I40) -> 58.68 | J41: =SUM(J35:J40) -> 722.8 | L41: =SUM(L35:L40) -> 141.54
A42: =A6 -> 1 | B42: =B6 -> 2 | C42: Ужин 2 | D42: кисломол. | E42: Ряженка | F42: 200 | G42: 12 | H42: 2 | I42: 8.4 | J42: 134 | K42: 58 | L42: 20.07
D43: фрукты | E43: Яблоки св. | F43: 150 | G43: 0.6 | H43: 0.6 | I43: 14.3 | J43: 68.6 | K43: 60 | L43: 63
D44: напиток
D48: итого | F48: =SUM(F42:F47) -> 350 | G48: =SUM(G42:G47) -> 12.6 | H48: =SUM(H42:H47) -> 2.6 | I48: =SUM(I42:I47) -> 22.7 | J48: =SUM(J42:J47) -> 202.6 | L48: =SUM(L42:L47) -> 83.07
A49: =A6 -> 1 | B49: =B6 -> 2 | C49: Итого за день: | F49: =F13+F19+F29+F34+F41+F48 -> 2120 | G49: =G13+G19+G29+G34+G41+G48 -> 83.44 | H49: =H13+H19+H29+H34+H41+H48 -> 110.63 | I49: =I13+I19+I29+I34+I41+I48 -> 294.03 | J49: =J13+J19+J29+J34+J41+J48 -> 3232.6 | L49: =L13+L19+L29+L34+L41+L48 -> 385.45
